fUST/lending_fUST_20250123
["ID","MTS","AMOUNT","RATE_DAILY","PERIOD"]
[350007615,1737564635306,-151.0,0.00019178,2]
[350007616,1737564635315,-500.0,0.00019178,2]
[350007617,1737564635325,-500.0,0.00019178,2]
[350007619,1737564635335,-2071.89,0.00019178,2]
[350007621,1737564635345,-2473.75,0.00019178,2]
[350007622,1737564635354,-1661.86,0.00019178,2]
[350007623,1737564635365,-640.76669992,0.00019178,2]
[350007625,1737564635376,-4299.43,0.00019178,2]
[350007627,1737564635385,-1286.76,0.00019178,2]
[350007629,1737564635395,-500.0,0.00019178,2]
[350007631,1737564635404,-500.0,0.00019178,2]
[350007633,1737564635414,-500.0,0.00019178,2]
[350007635,1737564635424,-1035.38,0.00019178,2]
[350007637,1737564635433,-359.36,0.00019178,2]
[350007638,1737564635442,-16358.84,0.00019178,2]
[350007639,1737564635452,-2210.85,0.00019178,2]
[350007640,1737564635461,-939.26,0.00019178,2]
[350007641,1737564635471,-500.0,0.00019178,2]
[350007642,1737564635480,-500.0,0.00019178,2]
[350007643,1737564635489,-500.0,0.00019178,2]
[350007644,1737564635499,-500.0,0.00019178,2]
[350007645,1737564635508,-882.91,0.00019178,2]
[350007646,1737564635517,-500.0,0.00019178,2]
[350007647,1737564635526,-500.0,0.00019178,2]
[350007648,1737564635536,-500.0,0.00019178,2]
[350007649,1737564635545,-618.52,0.00019178,2]
[350007650,1737564635556,-500.0,0.00019178,2]
[350007651,1737564635565,-1594.27,0.00019178,2]
[350007652,1737564635574,-957.42,0.00019178,2]
[350007653,1737564635583,-500.0,0.00019178,2]
[350007654,1737564635592,-3717.1,0.00019178,2]
[350007655,1737564635601,-44061.51,0.00019178,2]
[350007656,1737564635610,-500.0,0.00019178,2]
[350007658,1737564635619,-500.0,0.00019178,2]
[350007660,1737564635629,-879.95,0.00019178,2]
[350007662,1737564635638,-500.0,0.00019178,2]
[350007664,1737564635647,-500.0,0.00019178,2]
[350007665,1737564635656,-706.97,0.00019178,2]
[350007666,1737564635665,-4211.17,0.00019178,2]
[350007668,1737564635675,-596.67,0.00019178,2]
[350007670,1737564635685,-9316.42,0.00019178,2]
[350007672,1737564635695,-2184.88,0.00019178,2]
[350007673,1737564635704,-1727.79,0.00019178,2]
[350007674,1737564635714,-500.0,0.00019178,2]
[350007675,1737564635723,-500.0,0.00019178,2]
[350007676,1737564635733,-1813.62,0.00019178,2]
[350007677,1737564635742,-500.0,0.00019178,2]
[350007678,1737564635752,-1044.18,0.00019178,2]
[350007679,1737564635761,-500.0,0.00019178,2]
[350007680,1737564635778,-1736.69,0.00019178,2]
[350007681,1737564635798,-500.0,0.00019178,2]
[350007682,1737564635811,-500.0,0.00019178,2]
[350007683,1737564635821,-500.0,0.00019178,2]
[350007684,1737564635830,-620.88,0.00019178,2]
[350007685,1737564635840,-5204.52,0.00019178,2]
[350007686,1737564635850,-984.66,0.00019178,2]
[350007687,1737564635860,-1201.2,0.00019178,2]
[350007688,1737564635871,-500.0,0.00019178,2]
[350007689,1737564635882,-942.52,0.00019178,2]
[350007690,1737564635892,-637.18,0.00019178,2]
[350007691,1737564635901,-500.0,0.00019178,2]
[350007692,1737564635911,-500.0,0.00019178,2]
[350007693,1737564635921,-500.0,0.00019178,2]
[350007694,1737564635930,-500.0,0.00019178,2]
[350007695,1737564635940,-500.0,0.00019178,2]
[350007696,1737564635950,-500.0,0.00019178,2]
[350007697,1737564635962,-663.39,0.00019178,2]
[350007698,1737564635971,-338.31,0.00019178,2]
[350007699,1737564635981,-522.83,0.00019178,2]
[350007700,1737564635990,-500.0,0.00019178,2]
[350007701,1737564636002,-1205.55,0.00019178,2]
[350007702,1737564636011,-1006.49,0.00019178,2]
[350007703,1737564636020,-3905.23,0.00019178,2]
[350007704,1737564636030,-659.82,0.00019178,2]
[350007705,1737564636039,-500.0,0.00019178,2]
[350007706,1737564636049,-3218.57,0.00019178,2]
[350007707,1737564636059,-155.72,0.00019178,2]
[350007708,1737564636069,-302.96970909,0.0001919,2]
[350007709,1737564636080,-3000.0,0.00019215,2]
[350007710,1737564636089,-182.30025442,0.00019314,2]
[350007711,1737564636099,-500.0,0.00019315,3]
[350007712,1737564636108,-500.0,0.00019315,3]
[350007713,1737564636118,-500.0,0.00019315,3]
[350007714,1737564636127,-500.0,0.00019315,3]
[350007715,1737564636136,-500.0,0.00019315,3]
[350007716,1737564636146,-500.0,0.00019315,3]
[350007717,1737564636155,-500.0,0.00019315,3]
[350007718,1737564636165,-500.0,0.00019315,3]
[350007719,1737564636174,-500.0,0.00019315,3]
[350007720,1737564636183,-808.29,0.00019315,3]
[350007721,1737564636193,-500.0,0.00019315,3]
[350007722,1737564636202,-500.0,0.00019315,3]
[350007723,1737564636214,-415.22673669,0.00019315,3]
[350007724,1737564636227,-601.48,0.00019315,3]
[350007725,1737564636236,-565.94,0.00019315,3]
[350007726,1737564636245,-500.0,0.00019315,3]
[350007727,1737564636255,-500.0,0.00019315,3]
[350007728,1737564636264,-500.0,0.00019315,3]
[350007729,1737564636273,-225.52389638,0.00019315,3]
[350007730,1737564636283,-500.0,0.00019315,3]
[350007731,1737564636292,-500.0,0.00019315,3]
[350007732,1737564636303,-500.0,0.00019315,3]
[350007733,1737564636312,-500.34,0.00019315,3]
[350007734,1737564636321,-500.0,0.00019315,3]
[350007735,1737564636331,-723.33,0.00019315,3]
[350007736,1737564636340,-594.43,0.00019315,3]
[350007737,1737564636351,-321.42,0.00019315,3]
[350007738,1737564636360,-500.0,0.00019315,3]
[350007739,1737564636370,-500.0,0.00019315,3]
[350007740,1737564636379,-500.0,0.00019315,3]
[350007741,1737564636389,-619.71,0.00019315,3]
[350007742,1737564636398,-177.54685586,0.00019315,3]
[350007743,1737564636407,-944.49,0.00019315,3]
[350007744,1737564636416,-601.25,0.00019315,3]
[350007745,1737564636425,-500.0,0.00019315,3]
[350007746,1737564636435,-778.99,0.00019315,3]
[350007747,1737564636444,-500.0,0.00019315,3]
[350007748,1737564636453,-938.68,0.00019315,3]
[350007749,1737564636463,-500.0,0.00019315,3]
[350007750,1737564636472,-500.0,0.00019315,3]
[350007751,1737564636481,-500.0,0.00019315,3]
[350007752,1737564636491,-500.0,0.00019315,3]
[350007753,1737564636500,-722.23,0.00019315,3]
[350007754,1737564636510,-500.0,0.00019315,3]
[350007755,1737564636519,-500.0,0.00019315,3]
[350007756,1737564636529,-500.0,0.00019315,3]
[350007757,1737564636538,-536.74645116,0.00019315,3]
[350007758,1737564636548,-500.0,0.00019315,3]
[350007759,1737564636559,-1955.12,0.00019315,3]
[350007760,1737564636568,-500.0,0.00019315,3]
[350007761,1737564636578,-500.0,0.00019315,3]
[350007762,1737564636588,-332.76484053,0.00019315,3]
[350007763,1737564636597,-938.07,0.00019315,3]
[350007764,1737564636607,-1125.22,0.00019315,3]
[350007765,1737564636616,-500.0,0.00019315,3]
[350007766,1737564636626,-761.12,0.00019315,3]
[350007767,1737564636635,-502.14689884,0.00019315,2]
[350007768,1737564636645,-1530.83,0.00019315,3]
[350007769,1737564636654,-500.0,0.00019315,3]
[350007770,1737564636664,-1366.8,0.00019315,3]
[350007771,1737564636673,-500.0,0.00019315,3]
[350007772,1737564636764,-500.0,0.00019315,3]
[350007773,1737564636773,-1651.08,0.00019315,3]
[350007774,1737564636782,-711.32,0.00019315,3]
[350007775,1737564636792,-500.0,0.00019315,3]
[350007776,1737564636801,-500.0,0.00019315,3]
[350007777,1737564636811,-836.04,0.00019315,3]
[350007778,1737564636820,-500.0,0.00019315,3]
[350007779,1737564636829,-500.0,0.00019315,3]
[350007780,1737564636838,-500.0,0.00019315,3]
[350007781,1737564636847,-553.14,0.00019315,3]
[350007782,1737564636857,-500.0,0.00019315,3]
[350007783,1737564636867,-502.43,0.00019315,3]
[350007784,1737564636876,-500.0,0.00019315,3]
[350007785,1737564636887,-219.34642532,0.00019315,3]
[350007786,1737564636897,-544.43956736,0.00019315,3]
[350007787,1737564636907,-500.0,0.00019315,3]
[350007788,1737564636916,-850.28,0.00019315,3]
[350007789,1737564636927,-500.0,0.00019315,3]
[350007790,1737564636936,-1079.75,0.00019315,3]
[350007791,1737564636945,-726.17,0.00019315,3]
[350007792,1737564636955,-500.0,0.00019315,3]
[350007793,1737564636967,-541.41,0.00019315,3]
[350007794,1737564636976,-1646.4,0.00019315,3]
[350007795,1737564636985,-500.0,0.00019315,3]
[350007796,1737564636995,-500.0,0.00019315,3]
[350007797,1737564637005,-576.86,0.00019315,3]
[350007798,1737564637015,-500.0,0.00019315,3]
[350007799,1737564637024,-707.98,0.00019315,3]
[350007800,1737564637033,-571.52,0.00019315,3]
[350007801,1737564637042,-20653.58,0.00019315,3]
[350007802,1737564637053,-500.0,0.00019315,3]
[350007803,1737564637063,-3628.75,0.00019315,3]
[350007804,1737564637072,-500.0,0.00019315,3]
[350007805,1737564637081,-2244.57,0.00019315,3]
[350007806,1737564637090,-500.0,0.00019315,3]
[350007807,1737564637100,-500.0,0.00019315,3]
[350007808,1737564637110,-500.0,0.00019315,3]
[350007809,1737564637119,-500.0,0.00019315,3]
[350007810,1737564637128,-500.0,0.00019315,3]
[350007811,1737564637137,-500.0,0.00019315,3]
[350007812,1737564637146,-1263.56,0.00019315,3]
[350007813,1737564637155,-1045.84,0.00019315,3]
[350007814,1737564637164,-1480.47,0.00019315,3]
[350007815,1737564637173,-4477.02,0.00019315,3]
[350007816,1737564637182,-1308.75,0.00019315,3]
[350007817,1737564637192,-500.0,0.00019315,3]
[350007818,1737564637201,-500.0,0.00019315,3]
[350007819,1737564637211,-151.0,0.00019315,2]
[350007820,1737564637220,-151.0,0.00019315,2]
[350007821,1737564637229,-151.0,0.00019315,2]
[350007822,1737564637239,-151.0,0.00019315,2]
[350007823,1737564637251,-165.259236,0.00019315,2]
[350007824,1737564637261,-500.0,0.00019315,3]
[350007825,1737564637270,-2071.89,0.00019315,3]
[350007826,1737564637279,-2473.75,0.00019315,3]
[350007827,1737564637289,-1661.86,0.00019315,3]
[350007828,1737564637299,-4299.43,0.00019315,3]
[350007829,1737564637309,-1286.76,0.00019315,3]
[350007830,1737564637319,-500.0,0.00019315,3]
[350007831,1737564637328,-500.0,0.00019315,3]
[350007832,1737564637337,-500.0,0.00019315,3]
[350007833,1737564637346,-1035.38,0.00019315,3]
[350007834,1737564637356,-16358.84,0.00019315,3]
[350007835,1737564637365,-2210.85,0.00019315,3]
[350007836,1737564637374,-939.26,0.00019315,3]
[350007837,1737564637384,-500.0,0.00019315,3]
[350007838,1737564637393,-500.0,0.00019315,3]
[350007839,1737564637403,-500.0,0.00019315,3]
[350007840,1737564637412,-561.63324298,0.00019315,3]
[350007841,1737564637422,-882.91,0.00019315,3]
[350007842,1737564637431,-500.0,0.00019315,3]
[350007843,1737564637440,-500.0,0.00019315,3]
[350007844,1737564637450,-500.0,0.00019315,3]
[350007845,1737564637459,-500.0,0.00019315,3]
[350007846,1737564637468,-618.52,0.00019315,3]
[350007847,1737564637478,-1594.27,0.00019315,3]
[350007848,1737564637487,-391.28912179,0.00019315,3]
[350007892,1737564638669,-18932.45,0.00019178,2]
[350007894,1737564638678,-566.13087821,0.00019315,3]
[350007896,1737564638688,-500.0,0.00019315,3]
[350007898,1737564638697,-3717.1,0.00019315,3]
[350007900,1737564638707,-44061.51,0.00019315,3]
[350007902,1737564638716,-500.0,0.00019315,3]
[350007903,1737564638726,-500.0,0.00019315,3]
[350007904,1737564638738,-879.95,0.00019315,3]
[350007905,1737564638749,-500.0,0.00019315,3]
[350007906,1737564638758,-506.45,0.00019315,3]
[350007907,1737564638768,-706.97,0.00019315,3]
[350007908,1737564638777,-4211.17,0.00019315,3]
[350007909,1737564638786,-596.67,0.00019315,3]
[350007910,1737564638796,-9316.42,0.00019315,3]
[350007911,1737564638807,-2184.88,0.00019315,3]
[350007912,1737564638817,-1727.79,0.00019315,3]
[350007914,1737564638826,-500.0,0.00019315,3]
[350007916,1737564638835,-373.85264044,0.00019315,3]
[350007917,1737564638845,-1813.62,0.00019315,3]
[350007918,1737564638854,-500.0,0.00019315,3]
[350007919,1737564638864,-1044.18,0.00019315,3]
[350007920,1737564638878,-500.0,0.00019315,3]
[350007921,1737564638888,-1736.69,0.00019315,3]
[350007922,1737564638897,-500.0,0.00019315,3]
[350007923,1737564638907,-500.0,0.00019315,3]
[350007924,1737564638917,-500.0,0.00019315,3]
[350007925,1737564638926,-620.88,0.00019315,3]
[350007926,1737564638936,-5204.52,0.00019315,3]
[350007927,1737564638946,-984.66,0.00019315,3]
[350007928,1737564638955,-1201.2,0.00019315,3]
[350007930,1737564638967,-500.0,0.00019315,3]
[350007932,1737564638976,-942.52,0.00019315,3]
[350007934,1737564638985,-637.18,0.00019315,3]
[350007936,1737564638995,-500.0,0.00019315,3]
[350007938,1737564639005,-500.0,0.00019315,3]
[350007940,1737564639014,-663.39,0.00019315,3]
[350007942,1737564639023,-522.83,0.00019315,3]
[350007944,1737564639033,-500.0,0.00019315,3]
[350007946,1737564639042,-1205.55,0.00019315,3]
[350007948,1737564639052,-1006.49,0.00019315,3]
[350007950,1737564639063,-3905.23,0.00019315,3]
[350007952,1737564639073,-659.82,0.00019315,3]
[350007954,1737564639082,-500.0,0.00019315,3]
[350007956,1737564639092,-3218.57,0.00019315,3]
[350007958,1737564639101,-18932.45,0.00019315,3]
[350007960,1737564639110,-302.96970909,0.00019343,2]
[350007962,1737564639119,-500.0,0.00019373,2]
[350007964,1737564639129,-500.0,0.00019373,2]
[350007966,1737564639138,-382.27562031,0.00019373,2]
[350007978,1737564639242,-302.96970909,0.0001938,2]
[350007980,1737564639252,-9171.88,0.000194,2]
[350007982,1737564639261,-151.0,0.000194,2]
[350007985,1737564639271,-500.0,0.00019452,3]
[350007987,1737564639281,-500.0,0.00019452,3]
[350007988,1737564639290,-500.0,0.00019452,3]
[350007990,1737564639300,-503.45019622,0.00019452,3]
[350007993,1737564639310,-500.0,0.00019452,3]
[350007994,1737564639320,-500.0,0.00019452,3]
[350007997,1737564639330,-176.71,0.00019452,3]
[350007999,1737564639339,-506.48538674,0.00019452,3]
[350008000,1737564639349,-808.29,0.00019452,3]
[350008002,1737564639358,-500.0,0.00019452,3]
[350008005,1737564639368,-500.0,0.00019452,3]
[350008007,1737564639377,-601.48,0.00019452,3]
[350008009,1737564639387,-565.94,0.00019452,3]
[350008011,1737564639396,-429.76227797,0.00019452,3]
[350008013,1737564639406,-500.0,0.00019452,3]
[350008015,1737564639415,-500.0,0.00019452,3]
[350008017,1737564639425,-299.06352534,0.00019452,3]
[350008019,1737564639434,-500.0,0.00019452,3]
[350008021,1737564639443,-500.0,0.00019452,3]
[350008023,1737564639453,-500.34,0.00019452,3]
[350008025,1737564639463,-500.0,0.00019452,3]
[350008027,1737564639474,-723.33,0.00019452,3]
[350008029,1737564639483,-594.43,0.00019452,3]
[350008031,1737564639493,-500.0,0.00019452,3]
[350008033,1737564639502,-500.0,0.00019452,3]
[350008035,1737564639511,-619.71,0.00019452,3]
[350008037,1737564639520,-944.49,0.00019452,3]
[350008039,1737564639529,-500.0,0.00019452,3]
[350008041,1737564639539,-778.99,0.00019452,3]
[350008043,1737564639548,-500.0,0.00019452,3]
[350008045,1737564639557,-938.68,0.00019452,3]
[350008047,1737564639567,-500.0,0.00019452,3]
[350008049,1737564639576,-500.0,0.00019452,3]
[350008051,1737564639585,-500.0,0.00019452,3]
[350008053,1737564639594,-500.0,0.00019452,3]
[350008055,1737564639604,-722.23,0.00019452,3]
[350008057,1737564639613,-500.0,0.00019452,3]
[350008059,1737564639623,-500.0,0.00019452,3]
[350008061,1737564639632,-500.0,0.00019452,3]
[350008063,1737564639641,-500.0,0.00019452,3]
[350008065,1737564639650,-1955.12,0.00019452,3]
[350008067,1737564639659,-500.0,0.00019452,3]
[350008069,1737564639668,-500.0,0.00019452,3]
[350008071,1737564639678,-938.07,0.00019452,3]
[350008073,1737564639687,-1125.22,0.00019452,3]
[350008075,1737564639697,-496.70395487,0.00019452,3]
[350008077,1737564639707,-761.12,0.00019452,3]
[350008079,1737564639716,-1530.83,0.00019452,3]
[350008081,1737564639725,-500.0,0.00019452,3]
[350008083,1737564639736,-1366.8,0.00019452,3]
[350008085,1737564639745,-500.0,0.00019452,3]
[350008087,1737564639755,-500.0,0.00019452,3]
[350008089,1737564639765,-1651.08,0.00019452,3]
[350008091,1737564639775,-711.32,0.00019452,3]
[350008093,1737564639784,-500.0,0.00019452,3]
[350008095,1737564639793,-836.04,0.00019452,3]
[350008097,1737564639804,-500.0,0.00019452,3]
[350008099,1737564639814,-500.0,0.00019452,3]
[350008101,1737564639824,-500.0,0.00019452,3]
[350008103,1737564639833,-553.14,0.00019452,3]
[350008105,1737564639842,-238.55708513,0.00019452,3]
[350008107,1737564639851,-500.0,0.00019452,3]
[350008108,1737564639861,-500.0,0.00019452,3]
[350008109,1737564639870,-850.28,0.00019452,3]
[350008110,1737564639880,-500.0,0.00019452,3]
[350008111,1737564639892,-1079.75,0.00019452,3]
[350008112,1737564639902,-726.17,0.00019452,3]
[350008113,1737564639911,-500.0,0.00019452,3]
[350008114,1737564639920,-541.41,0.00019452,3]
[350008115,1737564639930,-1646.4,0.00019452,3]
[350008116,1737564639940,-500.0,0.00019452,3]
[350008117,1737564639949,-500.0,0.00019452,3]
[350008118,1737564639959,-576.86,0.00019452,3]
[350008119,1737564639970,-500.0,0.00019452,3]
[350008120,1737564639980,-707.98,0.00019452,3]
[350008121,1737564639989,-571.52,0.00019452,3]
[350008122,1737564639998,-500.0,0.00019452,3]
[350008123,1737564640007,-3628.75,0.00019452,3]
[350008124,1737564640017,-510.78270975,0.00019452,3]
[350008126,1737564640027,-2244.57,0.00019452,3]
[350008128,1737564640036,-500.0,0.00019452,3]
[350008130,1737564640046,-500.0,0.00019452,3]
[350008132,1737564640057,-500.0,0.00019452,3]
[350008134,1737564640066,-500.0,0.00019452,3]
[350008136,1737564640076,-257.81925144,0.00019452,3]
[350008138,1737564640086,-1263.56,0.00019452,3]
[350008139,1737564640095,-500.0,0.00019452,3]
[350008141,1737564640104,-1045.84,0.00019452,3]
[350008143,1737564640114,-1480.47,0.00019452,3]
[350008145,1737564640123,-4477.02,0.00019452,3]
[350008147,1737564640132,-1308.75,0.00019452,3]
[350008149,1737564640142,-500.0,0.00019452,3]
[350008151,1737564640151,-500.0,0.00019452,3]
[350008153,1737564640160,-151.0,0.00019452,2]
[350008155,1737564640169,-151.0,0.00019452,2]
[350008158,1737564640178,-151.0,0.00019452,2]
[350008160,1737564640188,-151.0,0.00019452,2]
[350008162,1737564640197,-500.0,0.00019452,3]
[350008164,1737564640206,-2071.89,0.00019452,3]
[350008166,1737564640215,-2473.75,0.00019452,3]
[350008168,1737564640225,-1661.86,0.00019452,3]
[350008170,1737564640234,-4299.43,0.00019452,3]
[350008172,1737564640243,-1286.76,0.00019452,3]
[350008174,1737564640253,-500.0,0.00019452,3]
[350008176,1737564640262,-500.0,0.00019452,3]
[350008178,1737564640272,-500.0,0.00019452,3]
[350008180,1737564640281,-1035.38,0.00019452,3]
[350008182,1737564640290,-16358.84,0.00019452,3]
[350008184,1737564640299,-2210.85,0.00019452,3]
[350008186,1737564640309,-939.26,0.00019452,3]
[350008188,1737564640319,-500.0,0.00019452,3]
[350008190,1737564640328,-500.0,0.00019452,3]
[350008192,1737564640338,-882.91,0.00019452,3]
[350008194,1737564640347,-500.0,0.00019452,3]
[350008196,1737564640356,-500.0,0.00019452,3]
[350008198,1737564640365,-500.0,0.00019452,3]
[350008200,1737564640374,-618.52,0.00019452,3]
[350008202,1737564640383,-500.0,0.00019452,3]
[350008204,1737564640392,-1594.27,0.00019452,3]
[350008206,1737564640401,-957.42,0.00019452,3]
[350008208,1737564640410,-500.0,0.00019452,3]
[350008209,1737564640419,-3717.1,0.00019452,3]
[350008211,1737564640428,-44061.51,0.00019452,3]
[350008213,1737564640437,-500.0,0.00019452,3]
[350008215,1737564640446,-500.0,0.00019452,3]
[350008217,1737564640455,-879.95,0.00019452,3]
[350008219,1737564640464,-500.0,0.00019452,3]
[350008222,1737564640474,-706.97,0.00019452,3]
[350008223,1737564640483,-4211.17,0.00019452,3]
[350008225,1737564640492,-596.67,0.00019452,3]
[350008228,1737564640502,-9316.42,0.00019452,3]
[350008230,1737564640511,-2184.88,0.00019452,3]
[350008232,1737564640520,-1727.79,0.00019452,3]
[350008234,1737564640530,-504.49697437,0.00019452,3]
[350008236,1737564640539,-1813.62,0.00019452,3]
[350008238,1737564640548,-369.30558429,0.00019452,3]
[350008240,1737564640557,-1044.18,0.00019452,3]
[350008242,1737564640567,-500.0,0.00019452,3]
[350008243,1737564640576,-1736.69,0.00019452,3]
[350008246,1737564640585,-500.0,0.00019452,3]
[350008248,1737564640595,-500.0,0.00019452,3]
[350008250,1737564640604,-500.0,0.00019452,3]
[350008252,1737564640613,-620.88,0.00019452,3]
[350008254,1737564640622,-5204.52,0.00019452,3]
[350008256,1737564640631,-984.66,0.00019452,3]
[350008258,1737564640642,-1201.2,0.00019452,3]
[350008259,1737564640653,-500.0,0.00019452,3]
[350008261,1737564640664,-942.52,0.00019452,3]
[350008264,1737564640673,-637.18,0.00019452,3]
[350008266,1737564640682,-500.0,0.00019452,3]
[350008268,1737564640694,-500.0,0.00019452,3]
[350008270,1737564640703,-663.39,0.00019452,3]
[350008272,1737564640712,-522.83,0.00019452,3]
[350008274,1737564640721,-500.0,0.00019452,3]
[350008276,1737564640730,-1205.55,0.00019452,3]
[350008278,1737564640739,-1006.49,0.00019452,3]
[350008280,1737564640748,-3905.23,0.00019452,3]
[350008282,1737564640759,-659.82,0.00019452,3]
[350008284,1737564640768,-500.0,0.00019452,3]
[350008286,1737564640777,-3218.57,0.00019452,3]
[350008288,1737564640786,-500.0,0.0001946,2]
[350008290,1737564640796,-500.0,0.00019473,2]
[350008292,1737564640805,-151.0,0.000195,2]
[350008294,1737564640814,-151.0,0.000195,2]
[350008296,1737564640824,-151.0,0.000195,2]
[350008298,1737564640833,-151.0,0.000195,2]
[350008300,1737564640842,-6891.61330139,0.00019522,2]
[350008302,1737564640852,-302.96970909,0.00019536,2]
[350008304,1737564640861,-302.96970909,0.0001957,2]
[350008306,1737564640870,-277.57520791,0.00019589,3]
[350008308,1737564640885,-500.0,0.00019589,3]
[350008310,1737564640894,-363.04706565,0.00019589,3]
[350008312,1737564640904,-500.0,0.00019589,3]
[350008314,1737564640915,-500.0,0.00019589,3]
[350008316,1737564640924,-808.29,0.00019589,3]
[350008318,1737564640933,-500.0,0.00019589,3]
[350008328,1737564641017,-500.0,0.00019589,3]
[350008330,1737564641027,-601.48,0.00019589,3]
[350008332,1737564641036,-565.94,0.00019589,3]
[350008334,1737564641045,-500.0,0.00019589,3]
[350008336,1737564641055,-500.0,0.00019589,3]
[350008338,1737564641065,-500.0,0.00019589,3]
[350008340,1737564641075,-500.0,0.00019589,3]
[350008342,1737564641084,-500.34,0.00019589,3]
[350008344,1737564641093,-500.0,0.00019589,3]
[350008346,1737564641104,-723.33,0.00019589,3]
[350008348,1737564641113,-594.43,0.00019589,3]
[350008350,1737564641122,-500.0,0.00019589,3]
[350008352,1737564641131,-619.71,0.00019589,3]
[350008354,1737564641140,-944.49,0.00019589,3]
[350008356,1737564641149,-500.0,0.00019589,3]
[350008358,1737564641158,-778.99,0.00019589,3]
[350008360,1737564641167,-500.0,0.00019589,3]
[350008362,1737564641176,-938.68,0.00019589,3]
[350008364,1737564641186,-500.0,0.00019589,3]
[350008366,1737564641195,-500.0,0.00019589,3]
[350008369,1737564641206,-500.0,0.00019589,3]
[350008371,1737564641216,-500.0,0.00019589,3]
[350008373,1737564641225,-722.23,0.00019589,3]
[350008375,1737564641234,-500.0,0.00019589,3]
[350008377,1737564641243,-500.0,0.00019589,3]
[350008379,1737564641252,-500.0,0.00019589,3]
[350008381,1737564641269,-500.0,0.00019589,3]
[350008383,1737564641278,-1955.12,0.00019589,3]
[350008385,1737564641288,-500.0,0.00019589,3]
[350008387,1737564641297,-500.0,0.00019589,3]
[350008389,1737564641307,-938.07,0.00019589,3]
[350008391,1737564641316,-1125.22,0.00019589,3]
[350008393,1737564641325,-761.12,0.00019589,3]
[350008395,1737564641335,-1530.83,0.00019589,3]
[350008397,1737564641343,-500.0,0.00019589,3]
[350008399,1737564641353,-1366.8,0.00019589,3]
[350008401,1737564641362,-500.0,0.00019589,3]
[350008403,1737564641371,-525.87599326,0.00019589,3]
[350008405,1737564641380,-1651.08,0.00019589,3]
[350008407,1737564641389,-711.32,0.00019589,3]
[350008409,1737564641398,-500.0,0.00019589,3]
[350008411,1737564641408,-836.04,0.00019589,3]
[350008413,1737564641417,-500.0,0.00019589,3]
[350008415,1737564641426,-500.0,0.00019589,3]
[350008417,1737564641435,-544.29,0.00019589,3]
[350008419,1737564641444,-553.14,0.00019589,3]
[350008421,1737564641453,-500.0,0.00019589,3]
[350008423,1737564641462,-500.0,0.00019589,3]
[350008425,1737564641471,-850.28,0.00019589,3]
[350008427,1737564641481,-500.0,0.00019589,3]
[350008428,1737564641489,-1079.75,0.00019589,3]
[350008431,1737564641499,-726.17,0.00019589,3]
[350008433,1737564641508,-541.41,0.00019589,3]
[350008435,1737564641518,-1646.4,0.00019589,3]